fUSD/lending_fUSD_20240624
["ID","MTS","AMOUNT","RATE_DAILY","PERIOD"]
[330263279,1719214302013,-500.0,0.00021095,4]
[330263280,1719214302022,-3007.89,0.00021095,4]
[330263281,1719214302031,-500.0,0.00021095,4]
[330263282,1719214302040,-5517.01,0.00021095,4]
[330263283,1719214302051,-3237.39,0.00021095,4]
[330263284,1719214302061,-500.0,0.00021095,4]
[330263285,1719214302070,-5108.38,0.00021095,4]
[330263286,1719214302079,-2162.86,0.00021095,4]
[330263287,1719214302088,-500.0,0.00021095,4]
[330263288,1719214302097,-776.23,0.00021095,4]
[330263289,1719214302107,-1479.77,0.00021095,4]
[330263290,1719214302117,-822.04,0.00021095,4]
[330263291,1719214302126,-3213.19,0.00021095,4]
[330263292,1719214302135,-630.89,0.00021095,4]
[330263293,1719214302145,-1437.16,0.00021095,4]
[330263294,1719214302155,-500.0,0.00021095,4]
[330263295,1719214302164,-206.87,0.00021095,4]
[330263296,1719214302174,-500.0,0.00021095,4]
[330263297,1719214302183,-8580.64,0.00021095,4]
[330263298,1719214302192,-4077.0,0.00021095,4]
[330263299,1719214302203,-407.8,0.00021095,4]
[330263300,1719214302212,-773.12,0.00021095,4]
[330263301,1719214302222,-522.29,0.00021095,4]
[330263302,1719214302231,-500.0,0.00021095,4]
[330263303,1719214302241,-1347.66,0.00021095,4]
[330263304,1719214302251,-500.0,0.00021095,4]
[330263305,1719214302260,-3845.4,0.00021095,4]
[330263306,1719214302270,-599.26,0.00021095,4]
[330263307,1719214302279,-520.44,0.00021095,4]
[330263308,1719214302289,-541.41,0.00021095,4]
[330263309,1719214302300,-653.28,0.00021095,4]
[330263310,1719214302310,-601.18,0.00021095,4]
[330263311,1719214302320,-4423.02,0.00021095,4]
[330263312,1719214302329,-1302.14,0.00021095,4]
[330263313,1719214302339,-1510.55,0.00021095,4]
[330263314,1719214302348,-4691.32,0.00021095,4]
[330263315,1719214302358,-1862.57,0.00021095,4]
[330263316,1719214302368,-500.0,0.00021095,4]
[330263317,1719214302377,-500.0,0.00021095,4]
[330263318,1719214302387,-611.44410758,0.00021095,4]
[330263319,1719214302396,-3581.0,0.00021095,4]
[330263320,1719214302406,-4540.36,0.00021095,4]
[330263321,1719214302415,-500.0,0.00021095,4]
[330263322,1719214302425,-3105.44,0.00021095,4]
[330263323,1719214302435,-647.91,0.00021095,4]
[330263324,1719214302444,-648.74,0.00021095,4]
[330263325,1719214302453,-775.75,0.00021095,4]
[330263326,1719214302463,-500.0,0.00021095,4]
[330263327,1719214302472,-551.02,0.00021095,4]
[330263328,1719214302481,-4542.28,0.00021095,4]
[330263329,1719214302491,-1450.78,0.00021095,4]
[330263330,1719214302500,-500.0,0.00021095,4]
[330263331,1719214302510,-2168.61,0.00021095,4]
[330263332,1719214302519,-500.0,0.00021095,4]
[330263333,1719214302529,-500.0,0.00021095,4]
[330263334,1719214302539,-2528.62,0.00021095,4]
[330263335,1719214302550,-500.0,0.00021095,4]
[330263336,1719214302559,-500.0,0.00021095,4]
[330263337,1719214302568,-500.0,0.00021095,2]
[330263338,1719214302577,-500.0,0.00021095,4]
[330263339,1719214302587,-3511.4,0.00021095,4]
[330263340,1719214302597,-500.0,0.00021095,4]
[330263341,1719214302606,-663.3,0.00021095,4]
[330263342,1719214302616,-500.0,0.00021095,4]
[330263343,1719214302630,-5536.21,0.00021095,4]
[330263344,1719214302640,-500.0,0.00021095,4]
[330263345,1719214302649,-2051.83,0.00021095,4]
[330263346,1719214302658,-3788.32,0.00021095,4]
[330263347,1719214302667,-500.0,0.00021095,4]
[330263348,1719214302676,-500.0,0.00021095,4]
[330263349,1719214302686,-738.9,0.00021095,4]
[330263350,1719214302696,-635.92,0.00021095,4]
[330263351,1719214302707,-500.0,0.00021095,4]
[330263352,1719214302717,-2983.25,0.00021095,4]
[330263353,1719214302726,-946.91,0.00021095,4]
[330263354,1719214302736,-3622.73,0.00021095,4]
[330263355,1719214302745,-501.0,0.00021211,2]
[330263356,1719214302754,-501.0,0.00021212,2]
[330263357,1719214302763,-501.0,0.00021214,2]
[330263358,1719214302774,-517.90803403,0.00021226,2]
[330263359,1719214302783,-376.398091,0.00021238,2]
[330263360,1719214302793,-375.715617,0.00021238,2]
[330263361,1719214302804,-2191.05603,0.0002126,2]
[330263362,1719214302813,-1536.0,0.000213,2]
[330263363,1719214302822,-996.28,0.0002131,2]
[330263364,1719214302831,-398.06647814,0.00021364,2]
[330263365,1719214302842,-237.89260728,0.00021369,2]
[330263366,1719214302851,-500.0,0.00021369,4]
[330263367,1719214302861,-500.0,0.00021369,4]
[330263368,1719214302870,-500.0,0.00021369,4]
[330263369,1719214302879,-500.0,0.00021369,4]
[330263370,1719214302888,-489.89,0.00021369,4]
[330263371,1719214302897,-500.0,0.00021369,4]
[330263372,1719214302907,-344.12,0.00021369,4]
[330263373,1719214302917,-500.0,0.00021369,4]
[330263374,1719214302927,-500.0,0.00021369,4]
[330263375,1719214302936,-379.22,0.00021369,4]
[330263376,1719214302946,-500.0,0.00021369,4]
[330263377,1719214302955,-500.0,0.00021369,4]
[330263378,1719214302965,-500.0,0.00021369,4]
[330263379,1719214302976,-500.0,0.00021369,4]
[330263380,1719214302985,-500.0,0.00021369,4]
[330263381,1719214302995,-500.0,0.00021369,4]
[330263382,1719214303004,-522.98,0.00021369,4]
[330263383,1719214303013,-599.2,0.00021369,2]
[330263384,1719214303023,-638.22,0.00021369,4]
[330263385,1719214303033,-500.0,0.00021369,4]
[330263386,1719214303042,-500.0,0.00021369,4]
[330263387,1719214303056,-500.0,0.00021369,4]
[330263388,1719214303065,-500.0,0.00021369,4]
[330263389,1719214303075,-616.38,0.00021369,4]
[330263390,1719214303084,-500.0,0.00021369,4]
[330263391,1719214303093,-500.0,0.00021369,4]
[330263392,1719214303102,-476.01,0.00021369,4]
[330263393,1719214303111,-500.0,0.00021369,4]
[330263394,1719214303120,-500.0,0.00021369,4]
[330263395,1719214303129,-500.0,0.00021369,4]
[330263396,1719214303138,-500.0,0.00021369,4]
[330263397,1719214303147,-500.0,0.00021369,4]
[330263398,1719214303156,-171.0,0.00021369,4]
[330263399,1719214303166,-500.0,0.00021369,4]
[330263400,1719214303176,-500.0,0.00021369,4]
[330263401,1719214303186,-592.22,0.00021369,4]
[330263402,1719214303195,-500.0,0.00021369,4]
[330263403,1719214303204,-500.0,0.00021369,4]
[330263404,1719214303215,-500.0,0.00021369,4]
[330263405,1719214303224,-153.08,0.00021369,4]
[330263406,1719214303234,-464.05,0.00021369,4]
[330263407,1719214303243,-500.0,0.00021369,4]
[330263408,1719214303252,-500.0,0.00021369,4]
[330263409,1719214303261,-500.0,0.00021369,4]
[330263410,1719214303271,-500.0,0.00021369,4]
[330263411,1719214303280,-381.64,0.00021369,4]
[330263412,1719214303290,-545.59,0.00021369,4]
[330263413,1719214303302,-500.0,0.00021369,4]
[330263414,1719214303311,-500.0,0.00021369,4]
[330263415,1719214303320,-500.0,0.00021369,4]
[330263416,1719214303330,-500.0,0.00021369,4]
[330263417,1719214303339,-500.0,0.00021369,4]
[330263418,1719214303349,-500.0,0.00021369,4]
[330263419,1719214303359,-500.0,0.00021369,4]
[330263420,1719214303368,-500.0,0.00021369,4]
[330263421,1719214303379,-500.0,0.00021369,4]
[330263422,1719214303389,-500.0,0.00021369,4]
[330263423,1719214303399,-500.0,0.00021369,4]
[330263424,1719214303408,-500.0,0.00021369,4]
[330263425,1719214303418,-500.0,0.00021369,4]
[330263426,1719214303428,-659.59,0.00021369,4]
[330263427,1719214303437,-500.0,0.00021369,4]
[330263428,1719214303447,-564.05,0.00021369,4]
[330263429,1719214303457,-168.29,0.00021369,4]
[330263430,1719214303468,-500.0,0.00021369,4]
[330263431,1719214303478,-297.98,0.00021369,4]
[330263432,1719214303487,-180.61,0.00021369,4]
[330263433,1719214303497,-500.0,0.00021369,4]
[330263434,1719214303508,-472.96,0.00021369,4]
[330263435,1719214303518,-500.0,0.00021369,4]
[330263436,1719214303527,-500.0,0.00021369,4]
[330263437,1719214303537,-248.06,0.00021369,4]
[330263438,1719214303546,-500.0,0.00021369,4]
[330263439,1719214303558,-500.0,0.00021369,4]
[330263440,1719214303567,-500.0,0.00021369,4]
[330263441,1719214303577,-500.0,0.00021369,4]
[330263442,1719214303586,-500.0,0.00021369,4]
[330263443,1719214303596,-178.69,0.00021369,4]
[330263444,1719214303606,-500.0,0.00021369,4]
[330263445,1719214303621,-500.0,0.00021369,4]
[330263446,1719214303631,-500.0,0.00021369,4]
[330263447,1719214303641,-494.89,0.00021369,4]
[330263448,1719214303650,-500.0,0.00021369,4]
[330263449,1719214303662,-268.29000054,0.00021369,4]
[330263450,1719214303671,-365.83798379,0.00021369,4]
[330263451,1719214303681,-164.65706575,0.00021369,4]
[330263452,1719214303690,-500.0,0.00021369,4]
[330263453,1719214303701,-500.0,0.00021369,4]
[330263454,1719214303711,-500.0,0.00021369,4]
[330263455,1719214303720,-500.0,0.00021369,4]
[330263456,1719214303730,-428.12,0.00021369,4]
[330263457,1719214303740,-150.0,0.00021369,4]
[330263458,1719214303749,-500.0,0.00021369,4]
[330263459,1719214303759,-183.84,0.00021369,4]
[330263460,1719214303769,-500.0,0.00021369,4]
[330263461,1719214303779,-172.96,0.00021369,4]
[330263462,1719214303788,-500.0,0.00021369,4]
[330263463,1719214303799,-500.0,0.00021369,4]
[330263464,1719214303809,-185.93,0.00021369,4]
[330263465,1719214303818,-855.7,0.00021369,4]
[330263466,1719214303828,-500.0,0.00021369,4]
[330263467,1719214303838,-500.0,0.00021369,4]
[330263468,1719214303848,-500.0,0.00021369,4]
[330263469,1719214303858,-682.1,0.00021369,4]
[330263470,1719214303868,-500.0,0.00021369,4]
[330263471,1719214303877,-500.0,0.00021369,4]
[330263472,1719214303887,-500.0,0.00021369,4]
[330263473,1719214303896,-500.0,0.00021369,4]
[330263474,1719214303906,-937.44,0.00021369,4]
[330263475,1719214303915,-295.90805754,0.00021369,4]
[330263476,1719214303924,-578.67,0.00021369,4]
[330263477,1719214303934,-500.0,0.00021369,4]
[330263478,1719214303944,-645.12,0.00021369,4]
[330263479,1719214303953,-768.8,0.00021369,4]
[330263480,1719214303963,-500.0,0.00021369,4]
[330263481,1719214303972,-2094.36,0.00021369,4]
[330263482,1719214303982,-577.82,0.00021369,4]
[330263483,1719214303991,-500.0,0.00021369,4]
[330263484,1719214304001,-500.0,0.00021369,4]
[330263485,1719214304011,-500.0,0.00021369,4]
[330263486,1719214304020,-6356.44,0.00021369,4]
[330263487,1719214304030,-500.0,0.00021369,4]
[330263488,1719214304040,-500.0,0.00021369,4]
[330263489,1719214304052,-500.0,0.00021369,4]
[330263490,1719214304062,-4647.89,0.00021369,4]
[330263491,1719214304072,-3141.04,0.00021369,4]
[330263492,1719214304081,-500.0,0.00021369,4]
[330263493,1719214304091,-3586.73,0.00021369,4]
[330263494,1719214304100,-6185.28,0.00021369,4]
[330263495,1719214304110,-2892.33,0.00021369,4]
[330263496,1719214304120,-2282.5,0.00021369,4]
[330263497,1719214304130,-500.0,0.00021369,4]
[330263498,1719214304139,-683.5,0.00021369,4]
[330263499,1719214304149,-650.76,0.00021369,4]
[330263500,1719214304159,-51483.53,0.00021369,4]
[330263501,1719214304169,-500.0,0.00021369,4]
[330263502,1719214304178,-500.0,0.00021369,4]
[330263503,1719214304188,-500.0,0.00021369,4]
[330263504,1719214304198,-34800.51,0.00021369,4]
[330263505,1719214304207,-6749.81,0.00021369,4]
[330263506,1719214304217,-4567.01,0.00021369,4]
[330263507,1719214304227,-5105.2,0.00021369,4]
[330263508,1719214304237,-500.0,0.00021369,4]
[330263509,1719214304247,-644.74,0.00021369,4]
[330263510,1719214304256,-500.0,0.00021369,4]
[330263511,1719214304265,-510.85,0.00021369,4]
[330263512,1719214304275,-1219.98,0.00021369,4]
[330263513,1719214304285,-500.0,0.00021369,4]
[330263514,1719214304295,-907.22,0.00021369,4]
[330263515,1719214304306,-1000.0,0.00021369,4]
[330263516,1719214304316,-500.0,0.00021369,4]
[330263517,1719214304325,-500.0,0.00021369,4]
[330263518,1719214304335,-2994.74,0.00021369,4]
[330263519,1719214304346,-500.0,0.00021369,4]
[330263520,1719214304356,-3411.07,0.00021369,4]
[330263521,1719214304366,-500.0,0.00021369,4]
[330263522,1719214304375,-500.0,0.00021369,4]
[330263523,1719214304385,-1945.6,0.00021369,4]
[330263524,1719214304395,-500.0,0.00021369,4]
[330263525,1719214304405,-4149.12,0.00021369,4]
[330263526,1719214304415,-500.0,0.00021369,4]
[330263527,1719214304424,-500.0,0.00021369,4]
[330263528,1719214304434,-1616.06,0.00021369,4]
[330263529,1719214304444,-571.69,0.00021369,4]
[330263530,1719214304454,-887.92,0.00021369,4]
[330263531,1719214304464,-4933.56,0.00021369,4]
[330263532,1719214304474,-2530.75,0.00021369,4]
[330263533,1719214304484,-2643.82,0.00021369,4]
[330263534,1719214304495,-547.62,0.00021369,4]
[330263535,1719214304505,-500.0,0.00021369,4]
[330263536,1719214304515,-700.46,0.00021369,4]
[330263537,1719214304525,-500.0,0.00021369,4]
[330263538,1719214304535,-2119.33,0.00021369,4]
[330263539,1719214304545,-6552.44,0.00021369,4]
[330263540,1719214304560,-1255.88,0.00021369,4]
[330263541,1719214304570,-5199.55,0.00021369,4]
[330263542,1719214304582,-807.64,0.00021369,4]
[330263543,1719214304594,-500.0,0.00021369,4]
[330263544,1719214304604,-5313.84,0.00021369,4]
[330263545,1719214304614,-10226.28,0.00021369,4]
[330263546,1719214304628,-9675.59,0.00021369,4]
[330263547,1719214304639,-1578.26,0.00021369,4]
[330263548,1719214304649,-2304.39,0.00021369,4]
[330263549,1719214304658,-1515.67,0.00021369,4]
[330263550,1719214304669,-500.0,0.00021369,4]
[330263551,1719214304679,-860.22,0.00021369,4]
[330263552,1719214304690,-1413.93,0.00021369,4]
[330263553,1719214304702,-2577.54,0.00021369,4]
[330263554,1719214304713,-500.0,0.00021369,4]
[330263555,1719214304723,-500.0,0.00021369,4]
[330263556,1719214304732,-2480.87,0.00021369,4]
[330263557,1719214304742,-3485.47,0.00021369,4]
[330263558,1719214304752,-1675.26,0.00021369,4]
[330263559,1719214304762,-500.0,0.00021369,4]
[330263560,1719214304773,-6936.84,0.00021369,4]
[330263561,1719214304783,-1833.59,0.00021369,4]
[330263562,1719214304793,-500.0,0.00021369,4]
[330263563,1719214304806,-500.0,0.00021369,4]
[330263564,1719214304816,-978.19,0.00021369,4]
[330263565,1719214304826,-906.01,0.00021369,4]
[330263566,1719214304836,-500.0,0.00021369,4]
[330263567,1719214304847,-1148.69,0.00021369,4]
[330263568,1719214304858,-1282.27,0.00021369,4]
[330263569,1719214304868,-5805.71,0.00021369,4]
[330263570,1719214304879,-3390.41,0.00021369,4]
[330263571,1719214304889,-500.0,0.00021369,4]
[330263572,1719214304900,-500.0,0.00021369,4]
[330263573,1719214304911,-4960.34,0.00021369,4]
[330263574,1719214304922,-3724.94,0.00021369,4]
[330263575,1719214304932,-631.73,0.00021369,4]
[330263576,1719214304943,-2618.38,0.00021369,4]
[330263577,1719214304954,-583.8,0.00021369,4]
[330263578,1719214304965,-6686.69,0.00021369,4]
[330263579,1719214304975,-3549.79,0.00021369,4]
[330263580,1719214304985,-683.84,0.00021369,4]
[330263581,1719214304995,-3505.82,0.00021369,4]
[330263582,1719214305005,-4601.22,0.00021369,4]
[330263583,1719214305015,-3007.89,0.00021369,4]
[330263584,1719214305025,-500.0,0.00021369,4]
[330263585,1719214305036,-5517.01,0.00021369,4]
[330263586,1719214305046,-3237.39,0.00021369,4]
[330263587,1719214305058,-5108.38,0.00021369,4]
[330263588,1719214305068,-2162.86,0.00021369,4]
[330263589,1719214305079,-500.0,0.00021369,4]
[330263590,1719214305089,-776.23,0.00021369,4]
[330263591,1719214305100,-1479.77,0.00021369,4]
[330263592,1719214305110,-822.04,0.00021369,4]
[330263593,1719214305120,-3213.19,0.00021369,4]
[330263594,1719214305130,-1437.16,0.00021369,4]
[330263595,1719214305140,-530.88329851,0.00021369,4]
[330263596,1719214305150,-191.96,0.00021369,4]
[330263597,1719214305160,-8580.64,0.00021369,4]
[330263598,1719214305170,-4077.0,0.00021369,4]
[330263599,1719214305180,-773.12,0.00021369,4]
[330263600,1719214305190,-522.29,0.00021369,4]
[330263601,1719214305201,-500.0,0.00021369,4]
[330263602,1719214305211,-1347.66,0.00021369,4]
[330263603,1719214305221,-3845.4,0.00021369,4]
[330263604,1719214305231,-295.82,0.00021369,4]
[330263605,1719214305241,-599.26,0.00021369,4]
[330263606,1719214305250,-520.44,0.00021369,4]
[330263607,1719214305261,-653.28,0.00021369,4]
[330263608,1719214305271,-601.18,0.00021369,4]
[330263609,1719214305282,-4423.02,0.00021369,4]
[330263610,1719214305292,-1302.14,0.00021369,4]
[330263611,1719214305303,-1510.55,0.00021369,4]
[330263612,1719214305313,-4691.32,0.00021369,4]
[330263613,1719214305323,-1862.57,0.00021369,4]
[330263614,1719214305333,-500.0,0.00021369,4]
[330263615,1719214305343,-500.0,0.00021369,4]
[330263616,1719214305352,-3581.0,0.00021369,4]
[330263617,1719214305362,-4540.36,0.00021369,4]
[330263618,1719214305372,-500.0,0.00021369,4]
[330263619,1719214305383,-3105.44,0.00021369,4]
[330263620,1719214305393,-647.91,0.00021369,4]
[330263621,1719214305403,-775.75,0.00021369,4]
[330263622,1719214305413,-500.0,0.00021369,4]
[330263623,1719214305423,-551.02,0.00021369,4]
[330263624,1719214305432,-4542.28,0.00021369,4]
[330263625,1719214305443,-1450.78,0.00021369,4]
[330263626,1719214305683,-197.03,0.00021369,4]
[330263627,1719214305696,-2168.61,0.00021369,4]
[330263628,1719214305706,-500.0,0.00021369,4]
[330263629,1719214305717,-500.0,0.00021369,4]
[330263630,1719214305727,-2528.62,0.00021369,4]
[330263631,1719214305737,-273.02145372,0.00021369,4]
[330263632,1719214305746,-500.0,0.00021369,4]
[330263633,1719214305756,-500.0,0.00021369,2]
[330263634,1719214305766,-571.35,0.00021369,4]
[330263635,1719214305776,-3511.4,0.00021369,4]
[330263636,1719214305786,-628.44,0.00021369,4]
[330263637,1719214305795,-663.3,0.00021369,4]
[330263638,1719214305808,-500.0,0.00021369,4]
[330263639,1719214305817,-5536.21,0.00021369,4]
[330263640,1719214305827,-500.0,0.00021369,4]
[330263641,1719214305837,-2051.83,0.00021369,4]
[330263642,1719214305847,-3788.32,0.00021369,4]
[330263643,1719214305857,-500.0,0.00021369,4]
[330263644,1719214305867,-500.0,0.00021369,4]
[330263645,1719214305876,-738.9,0.00021369,4]
[330263646,1719214305887,-635.92,0.00021369,4]
[330263647,1719214305896,-500.0,0.00021369,4]
[330263648,1719214305906,-2983.25,0.00021369,4]
[330263649,1719214305915,-3622.73,0.00021369,4]
[330263650,1719214305925,-946.91,0.00021369,4]
[330263651,1719214305935,-1000.0,0.000214,2]
[330263652,1719214305944,-151.0,0.00021426,2]
[330263653,1719214305953,-226.23107943,0.00021459,2]
[330263654,1719214305963,-501.0,0.00021461,2]
[330263655,1719214305972,-501.0,0.00021463,2]
[330263656,1719214305982,-501.0,0.00021464,2]
[330263657,1719214305992,-1000.0,0.000215,2]
[330263658,1719214306002,-150.0,0.0002154,2]
[330263659,1719214306012,-376.398091,0.0002155,2]
[330263660,1719214306021,-375.715617,0.0002155,2]
[330263661,1719214306031,-500.0,0.00021626,2]
[330263662,1719214306040,-500.0,0.00021643,4]
[330263663,1719214306050,-500.0,0.00021643,4]
[330263664,1719214306059,-500.0,0.00021643,4]
[330263665,1719214306068,-500.0,0.00021643,4]
[330263666,1719214306078,-462.26,0.00021643,4]
[330263667,1719214306088,-500.0,0.00021643,4]
[330263668,1719214306098,-500.0,0.00021643,4]
[330263669,1719214306107,-182.77,0.00021643,4]
[330263670,1719214306116,-375.53114715,0.00021643,4]
[330263671,1719214306125,-620.1,0.00021643,4]
[330263672,1719214306135,-627.14,0.00021643,4]
[330263673,1719214306145,-500.0,0.00021643,4]
[330263674,1719214306154,-500.0,0.00021643,4]
[330263675,1719214306164,-638.22,0.00021643,4]
[330263676,1719214306173,-515.36,0.00021643,4]
[330263677,1719214306183,-500.0,0.00021643,4]
[330263678,1719214306194,-500.0,0.00021643,4]
[330263679,1719214306203,-550.44,0.00021643,4]
[330263680,1719214306213,-240.66,0.00021643,4]
[330263681,1719214306223,-500.0,0.00021643,4]
[330263682,1719214306233,-306.44,0.00021643,4]
[330263683,1719214306243,-500.0,0.00021643,4]
[330263684,1719214306252,-500.0,0.00021643,4]
[330263685,1719214306262,-585.56,0.00021643,4]
[330263686,1719214306272,-500.0,0.00021643,4]
[330263687,1719214306281,-500.0,0.00021643,4]
[330263688,1719214306291,-500.0,0.00021643,4]
[330263689,1719214306302,-500.0,0.00021643,4]
[330263690,1719214306312,-500.0,0.00021643,4]
[330263691,1719214306321,-500.0,0.00021643,4]
[330263692,1719214306331,-500.0,0.00021643,4]
[330263693,1719214306341,-500.0,0.00021643,4]
[330263694,1719214306350,-500.0,0.00021643,4]
[330263695,1719214306360,-340.68,0.00021643,4]
[330263696,1719214306370,-500.0,0.00021643,4]
[330263697,1719214306379,-500.0,0.00021643,4]
[330263698,1719214306389,-500.0,0.00021643,4]
[330263699,1719214306398,-500.0,0.00021643,4]
[330263700,1719214306408,-596.92,0.00021643,4]
[330263701,1719214306417,-500.0,0.00021643,4]
[330263702,1719214306427,-500.0,0.00021643,4]
[330263703,1719214306437,-500.0,0.00021643,4]
[330263704,1719214306447,-633.01,0.00021643,4]
[330263705,1719214306458,-500.0,0.00021643,4]
[330263706,1719214306467,-500.0,0.00021643,4]
[330263707,1719214306477,-500.0,0.00021643,4]
[330263708,1719214306486,-244.8,0.00021643,4]
[330263709,1719214306496,-659.59,0.00021643,4]
[330263710,1719214306505,-500.0,0.00021643,4]
[330263711,1719214306515,-474.88,0.00021643,4]
[330263712,1719214306525,-629.6,0.00021643,4]
[330263713,1719214306534,-500.0,0.00021643,4]
[330263714,1719214306544,-183.51,0.00021643,4]
[330263715,1719214306554,-218.53,0.00021643,4]
[330263716,1719214306563,-500.0,0.00021643,4]
[330263717,1719214306573,-500.0,0.00021643,4]
[330263718,1719214306583,-405.05,0.00021643,4]
[330263719,1719214306592,-500.0,0.00021643,4]
[330263720,1719214306601,-500.0,0.00021643,4]
[330263721,1719214306611,-500.0,0.00021643,4]
[330263722,1719214306623,-243.56,0.00021643,4]
[330263723,1719214306632,-500.0,0.00021643,4]
[330263724,1719214306642,-224.27,0.00021643,4]
[330263725,1719214306651,-500.0,0.00021643,4]
[330263726,1719214306661,-500.0,0.00021643,4]
[330263727,1719214306670,-500.0,0.00021643,4]
[330263728,1719214306680,-150.0,0.00021643,4]
[330263729,1719214306689,-271.21,0.00021643,4]
[330263730,1719214306701,-500.0,0.00021643,4]
[330263731,1719214306714,-500.0,0.00021643,4]
[330263732,1719214306724,-639.23,0.00021643,4]
[330263733,1719214306733,-855.7,0.00021643,4]
[330263734,1719214306743,-500.0,0.00021643,4]
[330263735,1719214306752,-500.0,0.00021643,4]
[330263736,1719214306761,-434.98,0.00021643,4]
[330263737,1719214306770,-682.1,0.00021643,4]
[330263738,1719214306779,-500.0,0.00021643,4]
[330263739,1719214306789,-500.0,0.00021643,4]
[330263740,1719214306800,-264.77549989,0.00021643,4]
[330263741,1719214306809,-500.0,0.00021643,4]
[330263742,1719214306818,-937.44,0.00021643,4]
[330263743,1719214306828,-500.0,0.00021643,4]
[330263744,1719214306839,-645.12,0.00021643,4]
[330263745,1719214306848,-768.8,0.00021643,4]
[330263746,1719214306857,-500.0,0.00021643,4]
[330263747,1719214306867,-2094.36,0.00021643,4]
[330263748,1719214306876,-577.82,0.00021643,4]
[330263749,1719214306885,-500.0,0.00021643,4]
[330263750,1719214306895,-500.0,0.00021643,4]
[330263751,1719214306904,-500.0,0.00021643,4]
[330263752,1719214306913,-6356.44,0.00021643,4]
[330263753,1719214306923,-500.0,0.00021643,4]
[330263754,1719214306933,-500.0,0.00021643,4]
[330263755,1719214306944,-500.0,0.00021643,4]
[330263756,1719214306953,-4647.89,0.00021643,4]
[330263757,1719214306962,-3141.04,0.00021643,4]
[330263758,1719214306972,-500.0,0.00021643,4]
[330263759,1719214306981,-3586.73,0.00021643,4]
[330263760,1719214306991,-6185.28,0.00021643,4]
[330263761,1719214307001,-2892.33,0.00021643,4]
[330263762,1719214307010,-2282.5,0.00021643,4]
[330263763,1719214307020,-202.79,0.00021643,4]
[330263764,1719214307029,-683.5,0.00021643,4]
[330263765,1719214307039,-650.76,0.00021643,4]
[330263766,1719214307048,-51483.53,0.00021643,4]
[330263767,1719214307058,-500.0,0.00021643,4]
[330263768,1719214307067,-500.0,0.00021643,4]
[330263769,1719214307077,-500.0,0.00021643,4]
[330263770,1719214307087,-34800.51,0.00021643,4]
[330263771,1719214307096,-6749.81,0.00021643,4]
[330263772,1719214307106,-4567.01,0.00021643,4]
[330263773,1719214307115,-5105.2,0.00021643,4]
[330263774,1719214307124,-500.0,0.00021643,4]
[330263775,1719214307134,-644.74,0.00021643,4]
[330263776,1719214307143,-500.0,0.00021643,4]
[330263777,1719214307152,-510.85,0.00021643,4]
[330263778,1719214307161,-1219.98,0.00021643,4]